fUST/lending_fUST_20250203
["ID","MTS","AMOUNT","RATE_DAILY","PERIOD"]
[351346895,1738528231938,-500.0,0.00016437,2]
[351346897,1738528231947,-500.0,0.00016437,2]
[351346899,1738528231957,-500.0,0.00016437,2]
[351346901,1738528231967,-420.7490541,0.00016438,2]
[351346903,1738528231976,-537.6,0.00016438,2]
[351346904,1738528231985,-500.0,0.00016438,2]
[351346905,1738528231995,-500.0,0.00016438,2]
[351346907,1738528232004,-500.0,0.00016438,2]
[351346908,1738528232013,-500.0,0.00016438,2]
[351346909,1738528232024,-500.0,0.00016438,2]
[351346910,1738528232034,-500.0,0.00016438,2]
[351346911,1738528232043,-500.0,0.00016438,2]
[351346912,1738528232052,-500.0,0.00016438,2]
[351346913,1738528232061,-500.0,0.00016438,2]
[351346914,1738528232070,-228.61949507,0.00016438,2]
[351346915,1738528232080,-500.0,0.00016438,2]
[351346917,1738528232089,-504.89855023,0.00016438,2]
[351346919,1738528232099,-344.59608758,0.00016438,2]
[351346921,1738528232108,-500.0,0.00016438,2]
[351346923,1738528232117,-500.0,0.00016438,2]
[351346926,1738528232127,-500.0,0.00016438,2]
[351346928,1738528232136,-500.0,0.00016438,2]
[351346931,1738528232146,-500.0,0.00016438,2]
[351346934,1738528232155,-500.0,0.00016438,2]
[351346936,1738528232164,-500.0,0.00016438,2]
[351346939,1738528232174,-504.62350735,0.00016438,2]
[351346942,1738528232183,-500.0,0.00016438,2]
[351346944,1738528232193,-500.0,0.00016438,2]
[351346946,1738528232202,-500.0,0.00016438,2]
[351346948,1738528232211,-500.0,0.00016438,2]
[351346949,1738528232221,-500.0,0.00016438,2]
[351346950,1738528232231,-500.0,0.00016438,2]
[351346951,1738528232240,-500.0,0.00016438,2]
[351346952,1738528232249,-500.0,0.00016438,2]
[351346953,1738528232259,-500.0,0.00016438,2]
[351346954,1738528232270,-500.0,0.00016438,2]
[351346955,1738528232279,-500.0,0.00016438,2]
[351346956,1738528232289,-500.0,0.00016438,2]
[351346957,1738528232298,-500.0,0.00016438,2]
[351346958,1738528232307,-500.0,0.00016438,2]
[351346959,1738528232317,-500.0,0.00016438,2]
[351346960,1738528232326,-500.0,0.00016438,2]
[351346961,1738528232335,-500.0,0.00016438,2]
[351346962,1738528232345,-500.0,0.00016438,2]
[351346963,1738528232354,-500.0,0.00016438,2]
[351346964,1738528232363,-500.0,0.00016438,2]
[351346965,1738528232372,-391.46612239,0.00016438,2]
[351346966,1738528232382,-500.0,0.00016438,2]
[351346967,1738528232391,-500.0,0.00016438,2]
[351346968,1738528232401,-895.1,0.00016438,2]
[351346969,1738528232410,-500.0,0.00016438,2]
[351346970,1738528232419,-1240.04,0.00016438,2]
[351346971,1738528232429,-500.0,0.00016438,2]
[351346972,1738528232438,-500.0,0.00016438,2]
[351346973,1738528232448,-500.0,0.00016438,2]
[351346974,1738528232457,-244.84084401,0.00016438,2]
[351346975,1738528232466,-500.0,0.00016438,2]
[351346976,1738528232476,-4691.04,0.00016438,2]
[351346977,1738528232486,-920.49,0.00016438,2]
[351346978,1738528232496,-500.0,0.00016438,2]
[351346979,1738528232508,-500.0,0.00016438,2]
[351346980,1738528232525,-500.0,0.00016438,2]
[351346981,1738528232539,-486.68013174,0.00016438,2]
[351346982,1738528232551,-500.0,0.00016438,2]
[351346983,1738528232560,-578.65,0.00016438,2]
[351346984,1738528232570,-500.0,0.00016438,2]
[351346985,1738528232579,-511.16,0.00016438,2]
[351346986,1738528232589,-500.0,0.00016438,2]
[351346987,1738528232598,-500.0,0.00016438,2]
[351346988,1738528232608,-522.38,0.00016438,2]
[351346989,1738528232618,-500.0,0.00016438,2]
[351346990,1738528232629,-590.02,0.00016438,2]
[351346991,1738528232640,-500.0,0.00016438,2]
[351346992,1738528232650,-500.0,0.00016438,2]
[351346993,1738528232660,-529.1,0.00016438,2]
[351346994,1738528232669,-500.0,0.00016438,2]
[351346995,1738528232679,-1613.6,0.00016438,2]
[351346996,1738528232688,-500.0,0.00016438,2]
[351346997,1738528232698,-500.0,0.00016438,2]
[351346998,1738528232707,-500.0,0.00016438,2]
[351346999,1738528232716,-500.0,0.00016438,2]
[351347000,1738528232726,-5859.84,0.00016438,2]
[351347001,1738528232735,-2298.18,0.00016438,2]
[351347002,1738528232744,-500.0,0.00016438,2]
[351347003,1738528232753,-500.0,0.00016438,2]
[351347004,1738528232763,-500.0,0.00016438,2]
[351347005,1738528232775,-1366.36,0.00016438,2]
[351347006,1738528232784,-500.0,0.00016438,2]
[351347007,1738528232795,-500.93996415,0.00016438,2]
[351347008,1738528232804,-500.0,0.00016438,2]
[351347009,1738528232813,-500.0,0.00016438,2]
[351347010,1738528232823,-500.0,0.00016438,2]
[351347011,1738528232832,-500.0,0.00016438,2]
[351347012,1738528232842,-500.0,0.00016438,2]
[351347013,1738528232852,-511.62838714,0.00016438,2]
[351347014,1738528232861,-500.0,0.00016438,2]
[351347015,1738528232873,-503.48201154,0.00016438,2]
[351347016,1738528232882,-500.0,0.00016438,2]
[351347017,1738528232892,-500.0,0.00016438,2]
[351347018,1738528232901,-506.77428336,0.00016438,2]
[351347019,1738528232911,-500.0,0.00016438,2]
[351347020,1738528232921,-356.63409671,0.00016438,2]
[351347021,1738528232931,-500.0,0.00016438,2]
[351347022,1738528232940,-500.0,0.00016438,2]
[351347023,1738528232949,-500.0,0.00016438,2]
[351347024,1738528232958,-500.0,0.00016438,2]
[351347025,1738528232968,-1262.91,0.00016438,2]
[351347026,1738528232977,-500.0,0.00016438,2]
[351347027,1738528232987,-501.91014212,0.00016438,2]
[351347028,1738528232997,-1261.73,0.00016438,2]
[351347029,1738528233006,-500.0,0.00016438,2]
[351347030,1738528233016,-848.08,0.00016438,2]
[351347031,1738528233032,-500.0,0.00016438,2]
[351347032,1738528233042,-500.0,0.00016438,2]
[351347033,1738528233053,-500.0,0.00016438,2]
[351347034,1738528233064,-500.0,0.00016438,2]
[351347035,1738528233074,-500.0,0.00016438,2]
[351347036,1738528233084,-500.0,0.00016438,2]
[351347037,1738528233094,-500.0,0.00016438,2]
[351347038,1738528233104,-500.0,0.00016438,2]
[351347039,1738528233115,-500.0,0.00016438,2]
[351347040,1738528233124,-500.0,0.00016438,2]
[351347041,1738528233134,-2575.17,0.00016438,2]
[351347042,1738528233144,-176.71,0.00016438,2]
[351347043,1738528233155,-500.0,0.00016438,2]
[351347044,1738528233164,-500.0,0.00016438,2]
[351347045,1738528233174,-500.0,0.00016438,2]
[351347046,1738528233183,-500.0,0.00016438,2]
[351347047,1738528233193,-500.0,0.00016438,2]
[351347048,1738528233203,-500.0,0.00016438,2]
[351347049,1738528233213,-500.0,0.00016438,2]
[351347050,1738528233223,-501.6671459,0.00016438,2]
[351347051,1738528233233,-500.0,0.00016438,2]
[351347052,1738528233243,-500.0,0.00016438,2]
[351347053,1738528233252,-500.0,0.00016438,2]
[351347054,1738528233262,-1411.63,0.00016438,2]
[351347055,1738528233276,-500.0,0.00016438,2]
[351347056,1738528233287,-783.11,0.00016438,2]
[351347057,1738528233297,-519.34556747,0.00016438,2]
[351347058,1738528233306,-12058.94,0.00016438,2]
[351347059,1738528233315,-500.0,0.00016438,2]
[351347060,1738528233325,-500.0,0.00016438,2]
[351347061,1738528233335,-152.36687066,0.00016438,2]
[351347062,1738528233345,-151.37450619,0.00016475,2]
[351347063,1738528233354,-1244.52443633,0.000165,2]
[351347064,1738528233364,-319.52558312,0.00016561,2]
[351347065,1738528233374,-500.0,0.00016575,2]
[351347066,1738528233384,-500.0,0.00016575,2]
[351347067,1738528233393,-500.0,0.00016575,2]
[351347068,1738528233403,-500.0,0.00016575,2]
[351347069,1738528233413,-404.7598767,0.00016575,2]
[351347070,1738528233423,-500.0,0.00016575,2]
[351347071,1738528233433,-500.0,0.00016575,2]
[351347072,1738528233443,-500.0,0.00016575,2]
[351347073,1738528233453,-500.0,0.00016575,2]
[351347074,1738528233463,-500.0,0.00016575,2]
[351347075,1738528233473,-500.0,0.00016575,2]
[351347076,1738528233483,-500.0,0.00016575,2]
[351347077,1738528233493,-313.1890241,0.00016575,2]
[351347078,1738528233503,-500.0,0.00016575,2]
[351347079,1738528233513,-500.0,0.00016575,2]
[351347080,1738528233527,-895.1,0.00016575,2]
[351347081,1738528233538,-1240.04,0.00016575,2]
[351347082,1738528233547,-500.0,0.00016575,2]
[351347083,1738528233557,-500.0,0.00016575,2]
[351347084,1738528233566,-500.0,0.00016575,2]
[351347085,1738528233576,-4691.04,0.00016575,2]
[351347086,1738528233586,-920.49,0.00016575,2]
[351347087,1738528233596,-603.77,0.00016575,2]
[351347088,1738528233606,-502.66136931,0.00016575,2]
[351347089,1738528233616,-578.65,0.00016575,2]
[351347090,1738528233625,-500.0,0.00016575,2]
[351347091,1738528233635,-511.16,0.00016575,2]
[351347092,1738528233645,-500.0,0.00016575,2]
[351347093,1738528233654,-522.38,0.00016575,2]
[351347094,1738528233663,-523.13,0.00016575,2]
[351347095,1738528233673,-590.02,0.00016575,2]
[351347096,1738528233683,-500.0,0.00016575,2]
[351347097,1738528233693,-529.1,0.00016575,2]
[351347098,1738528233704,-500.0,0.00016575,2]
[351347099,1738528233713,-1613.6,0.00016575,2]
[351347100,1738528233723,-5859.84,0.00016575,2]
[351347101,1738528233732,-404.81,0.00016575,2]
[351347102,1738528233742,-2298.18,0.00016575,2]
[351347103,1738528233752,-500.0,0.00016575,2]
[351347104,1738528233761,-500.0,0.00016575,2]
[351347105,1738528233774,-500.0,0.00016575,2]
[351347106,1738528233783,-1366.36,0.00016575,2]
[351347107,1738528233795,-500.0,0.00016575,2]
[351347108,1738528233806,-500.0,0.00016575,2]
[351347109,1738528233815,-500.0,0.00016575,2]
[351347110,1738528233825,-500.0,0.00016575,2]
[351347111,1738528233835,-500.0,0.00016575,2]
[351347112,1738528233846,-1262.91,0.00016575,2]
[351347113,1738528233855,-500.0,0.00016575,2]
[351347114,1738528233864,-1261.73,0.00016575,2]
[351347115,1738528233874,-411.87256272,0.00016575,2]
[351347116,1738528233884,-848.08,0.00016575,2]
[351347117,1738528233894,-206.02018433,0.00016575,2]
[351347118,1738528233904,-500.0,0.00016575,2]
[351347119,1738528233914,-500.0,0.00016575,2]
[351347120,1738528233923,-500.0,0.00016575,2]
[351347121,1738528233933,-500.0,0.00016575,2]
[351347122,1738528233943,-500.0,0.00016575,2]
[351347123,1738528233952,-2575.17,0.00016575,2]
[351347124,1738528233962,-500.0,0.00016575,2]
[351347125,1738528233972,-500.0,0.00016575,2]
[351347126,1738528233982,-500.0,0.00016575,2]
[351347127,1738528233993,-580.38,0.00016575,2]
[351347128,1738528234003,-500.0,0.00016575,2]
[351347129,1738528234012,-438.70676401,0.00016575,2]
[351347130,1738528234024,-500.0,0.00016575,2]
[351347131,1738528234033,-1411.63,0.00016575,2]
[351347132,1738528234043,-783.11,0.00016575,2]
[351347133,1738528234053,-12058.94,0.00016575,2]
[351347134,1738528234062,-500.0,0.00016575,2]
[351347135,1738528234072,-500.0,0.00016712,2]
[351347136,1738528234082,-500.0,0.00016712,2]
[351347137,1738528234092,-500.0,0.00016712,2]
[351347138,1738528234102,-500.0,0.00016712,2]
[351347139,1738528234112,-500.0,0.00016712,2]
[351347140,1738528234123,-500.0,0.00016712,2]
[351347141,1738528234133,-500.0,0.00016712,2]
[351347142,1738528234146,-500.0,0.00016712,2]
[351347143,1738528234155,-500.0,0.00016712,2]
[351347144,1738528234165,-500.0,0.00016712,2]
[351347145,1738528234174,-895.1,0.00016712,2]
[351347146,1738528234184,-1240.04,0.00016712,2]
[351347147,1738528234193,-500.0,0.00016712,2]
[351347148,1738528234203,-500.0,0.00016712,2]
[351347149,1738528234212,-500.0,0.00016712,2]
[351347150,1738528234221,-4691.04,0.00016712,2]
[351347151,1738528234231,-40.21896398,0.00016712,2]
[351347152,1738528234504,-367.89812471,0.00016437,2]
[351347160,1738528237918,-132.10187529,0.00016437,2]
[351347161,1738528237927,-500.0,0.00016437,2]
[351347162,1738528237936,-500.0,0.00016437,2]
[351347163,1738528237945,-238.64178489,0.00016437,2]
[351347164,1738528237954,-500.0,0.00016437,2]
[351347165,1738528237964,-500.0,0.00016437,2]
[351347166,1738528237973,-500.0,0.00016437,2]
[351347167,1738528237982,-500.0,0.00016437,2]
[351347168,1738528237992,-500.0,0.00016437,2]
[351347169,1738528238001,-500.0,0.00016437,2]
[351347170,1738528238010,-500.0,0.00016437,2]
[351347171,1738528238019,-500.0,0.00016438,2]
[351347172,1738528238030,-500.0,0.00016438,2]
[351347173,1738528238039,-500.0,0.00016575,2]
[351347174,1738528238049,-500.0,0.00016575,2]
[351347175,1738528238058,-880.27103602,0.00016712,2]
[351347176,1738528238067,-578.65,0.00016712,2]
[351347177,1738528238076,-500.0,0.00016712,2]
[351347178,1738528238086,-511.16,0.00016712,2]
[351347179,1738528238095,-500.0,0.00016712,2]
[351347180,1738528238104,-522.38,0.00016712,2]
[351347181,1738528238113,-590.02,0.00016712,2]
[351347182,1738528238122,-500.0,0.00016712,2]
[351347183,1738528238131,-529.1,0.00016712,2]
[351347184,1738528238140,-500.0,0.00016712,2]
[351347185,1738528238149,-1613.6,0.00016712,2]
[351347186,1738528238158,-5859.84,0.00016712,2]
[351347187,1738528238167,-2298.18,0.00016712,2]
[351347188,1738528238176,-500.0,0.00016712,2]
[351347189,1738528238185,-500.0,0.00016712,2]
[351347190,1738528238194,-500.0,0.00016712,2]
[351347191,1738528238204,-1366.36,0.00016712,2]
[351347192,1738528238214,-589.80349403,0.00016712,2]
[351347193,1738528238223,-500.0,0.00016712,2]
[351347194,1738528238232,-500.0,0.00016712,2]
[351347195,1738528238242,-1262.91,0.00016712,2]
[351347196,1738528238251,-1261.73,0.00016712,2]
[351347197,1738528238261,-848.08,0.00016712,2]
[351347198,1738528238271,-500.0,0.00016712,2]
[351347199,1738528238283,-500.0,0.00016712,2]
[351347200,1738528238292,-500.0,0.00016712,2]
[351347201,1738528238302,-500.0,0.00016712,2]
[351347202,1738528238311,-2575.17,0.00016712,2]
[351347203,1738528238321,-500.0,0.00016712,2]
[351347204,1738528238331,-560.96,0.00016712,2]
[351347205,1738528238341,-500.0,0.00016712,2]
[351347206,1738528238350,-500.0,0.00016712,2]
[351347207,1738528238360,-1411.63,0.00016712,2]
[351347208,1738528238370,-783.11,0.00016712,2]
[351347209,1738528238379,-12058.94,0.00016712,2]
[351347210,1738528238389,-500.0,0.00016712,2]
[351347211,1738528238399,-500.0,0.00016712,2]
[351347212,1738528238409,-319.52558312,0.00016784,2]
[351347213,1738528238418,-404.68807437,0.00016848,2]
[351347214,1738528238427,-500.0,0.00016849,2]
[351347215,1738528238438,-500.0,0.00016849,2]
[351347216,1738528238447,-500.0,0.00016849,2]
[351347217,1738528238457,-500.0,0.00016849,2]
[351347218,1738528238466,-226.2,0.00016849,2]
[351347219,1738528238475,-500.0,0.00016849,2]
[351347220,1738528238485,-500.0,0.00016849,2]
[351347221,1738528238495,-500.0,0.00016849,2]
[351347222,1738528238505,-500.0,0.00016849,2]
[351347223,1738528238515,-1240.04,0.00016849,2]
[351347224,1738528238525,-500.0,0.00016849,2]
[351347225,1738528238542,-500.0,0.00016849,2]
[351347226,1738528238552,-4691.04,0.00016849,2]
[351347227,1738528238561,-920.49,0.00016849,2]
[351347228,1738528238570,-578.65,0.00016849,2]
[351347229,1738528238580,-500.0,0.00016849,2]
[351347230,1738528238589,-511.16,0.00016849,2]
[351347231,1738528238598,-500.0,0.00016849,2]
[351347232,1738528238608,-522.38,0.00016849,2]
[351347233,1738528238617,-590.02,0.00016849,2]
[351347234,1738528238626,-500.0,0.00016849,2]
[351347235,1738528238635,-529.1,0.00016849,2]
[351347236,1738528238645,-500.0,0.00016849,2]
[351347237,1738528238660,-1613.6,0.00016849,2]
[351347238,1738528238669,-5859.84,0.00016849,2]
[351347239,1738528238678,-2298.18,0.00016849,2]
[351347240,1738528238688,-500.0,0.00016849,2]
[351347241,1738528238697,-500.0,0.00016849,2]
[351347242,1738528238707,-1366.36,0.00016849,2]
[351347243,1738528238717,-500.0,0.00016849,2]
[351347244,1738528238726,-1262.91,0.00016849,2]
[351347245,1738528238735,-1261.73,0.00016849,2]
[351347246,1738528238744,-848.08,0.00016849,2]
[351347247,1738528238753,-500.0,0.00016849,2]
[351347248,1738528238763,-500.0,0.00016849,2]
[351347249,1738528238772,-500.0,0.00016849,2]
[351347250,1738528238788,-500.0,0.00016849,2]
[351347251,1738528238799,-2575.17,0.00016849,2]
[351347252,1738528238811,-500.0,0.00016849,2]
[351347253,1738528238820,-560.17758171,0.00016849,2]
[351347254,1738528238829,-1411.63,0.00016849,2]
[351347255,1738528238839,-783.11,0.00016849,2]
[351347256,1738528238849,-12058.94,0.00016849,2]
[351347257,1738528238860,-500.0,0.00016849,2]
[351347258,1738528238869,-500.0,0.00016849,2]
[351347259,1738528238878,-500.0,0.00016881,2]
[351347260,1738528238890,-500.0,0.00016881,2]
[351347261,1738528238901,-153.0,0.00016968,2]
[351347262,1738528238909,-153.0,0.00016968,2]
[351347263,1738528238917,-153.0,0.00016968,2]
[351347264,1738528238925,-153.0,0.00016968,2]
[351347265,1738528238933,-153.0,0.00016968,2]
[351347266,1738528238941,-153.0,0.00016968,2]
[351347267,1738528238948,-153.0,0.00016968,2]
[351347268,1738528238955,-153.0,0.00016968,2]
[351347269,1738528238963,-153.0,0.00016969,2]
[351347270,1738528238974,-153.0,0.00016969,2]
[351347271,1738528238984,-153.0,0.00016969,2]
[351347272,1738528238993,-153.0,0.00016969,2]
[351347273,1738528239003,-153.0,0.00016969,2]
[351347274,1738528239013,-153.0,0.00016969,2]
[351347275,1738528239022,-153.0,0.00016969,2]
[351347276,1738528239036,-153.0,0.00016969,2]
[351347277,1738528239045,-153.0,0.00016969,2]
[351347278,1738528239054,-500.0,0.00016986,2]
[351347279,1738528239064,-500.0,0.00016986,2]
[351347280,1738528239073,-500.0,0.00016986,2]
[351347281,1738528239082,-500.0,0.00016986,2]
[351347282,1738528239091,-500.0,0.00016986,2]
[351347283,1738528239100,-500.0,0.00016986,2]
[351347284,1738528239110,-500.0,0.00016986,2]
[351347285,1738528239119,-559.02,0.00016986,2]
[351347286,1738528239128,-1240.04,0.00016986,2]
[351347287,1738528239138,-500.0,0.00016986,2]
[351347288,1738528239147,-500.0,0.00016986,2]
[351347289,1738528239157,-4691.04,0.00016986,2]
[351347290,1738528239166,-920.49,0.00016986,2]
[351347291,1738528239176,-578.65,0.00016986,2]
[351347292,1738528239191,-500.0,0.00016986,2]
[351347293,1738528239200,-511.16,0.00016986,2]
[351347294,1738528239209,-500.0,0.00016986,2]
[351347296,1738528239218,-522.38,0.00016986,2]
[351347297,1738528239228,-590.02,0.00016986,2]
[351347298,1738528239237,-500.0,0.00016986,2]
[351347299,1738528239246,-529.1,0.00016986,2]
[351347300,1738528239255,-1613.6,0.00016986,2]
[351347301,1738528239265,-5859.84,0.00016986,2]
[351347302,1738528239274,-2298.18,0.00016986,2]
[351347304,1738528239284,-500.0,0.00016986,2]
[351347306,1738528239293,-500.0,0.00016986,2]
[351347308,1738528239302,-1366.36,0.00016986,2]
[351347310,1738528239311,-580.6,0.00016986,2]
[351347312,1738528239321,-1262.91,0.00016986,2]
[351347313,1738528239330,-1261.73,0.00016986,2]
[351347314,1738528239340,-848.08,0.00016986,2]
[351347315,1738528239349,-500.0,0.00016986,2]
[351347316,1738528239358,-500.0,0.00016986,2]
[351347317,1738528239367,-500.0,0.00016986,2]
[351347320,1738528239376,-500.0,0.00016986,2]
[351347321,1738528239386,-2575.17,0.00016986,2]
[351347323,1738528239395,-500.0,0.00016986,2]
[351347326,1738528239404,-1411.63,0.00016986,2]
[351347328,1738528239414,-783.11,0.00016986,2]
[351347331,1738528239423,-12058.94,0.00016986,2]
[351347334,1738528239432,-500.0,0.00016986,2]
[351347337,1738528239441,-500.0,0.00016986,2]
[351347339,1738528239451,-14560.0,0.00017,2]
[351347341,1738528239461,-354.4946044,0.00017041,2]
[351347343,1738528239471,-354.4946044,0.00017041,2]
[351347347,1738528239480,-354.4946044,0.00017041,2]
[351347348,1738528239491,-354.4946044,0.00017041,2]
[351347350,1738528239500,-354.4946044,0.00017041,2]
[351347352,1738528239510,-354.4946044,0.00017041,2]
[351347354,1738528239520,-354.4946044,0.00017041,2]
[351347356,1738528239531,-500.0,0.00017123,2]
[351347358,1738528239541,-500.0,0.00017123,2]
[351347360,1738528239551,-181.76,0.00017123,2]
[351347362,1738528239560,-500.0,0.00017123,2]
[351347364,1738528239569,-500.0,0.00017123,2]
[351347366,1738528239578,-500.0,0.00017123,2]
[351347368,1738528239587,-500.0,0.00017123,2]
[351347370,1738528239596,-1240.04,0.00017123,2]
[351347372,1738528239605,-500.0,0.00017123,2]
[351347374,1738528239614,-4691.04,0.00017123,2]
[351347376,1738528239624,-920.49,0.00017123,2]
[351347378,1738528239634,-578.65,0.00017123,2]
[351347380,1738528239642,-500.0,0.00017123,2]
[351347382,1738528239651,-511.16,0.00017123,2]
[351347384,1738528239661,-500.0,0.00017123,2]
[351347386,1738528239670,-522.38,0.00017123,2]
[351347388,1738528239679,-590.02,0.00017123,2]
[351347390,1738528239689,-500.0,0.00017123,2]
[351347392,1738528239698,-529.1,0.00017123,2]
[351347393,1738528239707,-1613.6,0.00017123,2]
[351347399,1738528239814,-5859.84,0.00017123,2]
[351347401,1738528239824,-2298.18,0.00017123,2]
[351347403,1738528239833,-500.0,0.00017123,2]
[351347404,1738528239843,-500.0,0.00017123,2]
[351347406,1738528239852,-1366.36,0.00017123,2]
[351347408,1738528239862,-1262.91,0.00017123,2]
[351347410,1738528239871,-848.08,0.00017123,2]
[351347412,1738528239883,-1261.73,0.00017123,2]
[351347414,1738528239893,-500.0,0.00017123,2]
[351347415,1738528239902,-500.0,0.00017123,2]
[351347417,1738528239912,-500.0,0.00017123,2]
[351347419,1738528239921,-2575.17,0.00017123,2]
[351347420,1738528239930,-500.0,0.00017123,2]
[351347421,1738528239940,-1411.63,0.00017123,2]
[351347423,1738528239949,-783.11,0.00017123,2]
[351347425,1738528239958,-12058.94,0.00017123,2]
[351347427,1738528239967,-500.0,0.00017123,2]
[351347429,1738528239977,-500.0,0.00017123,2]
[351347431,1738528239986,-10208.68623978,0.00017128,2]
[351347432,1738528239995,-501.235,0.00017231,2]
[351347433,1738528240005,-50773.32700422,0.0001726,5]
[351347434,1738528240014,-500.0,0.0001726,2]
[351347435,1738528240023,-380.4,0.0001726,2]
[351347436,1738528240033,-500.0,0.0001726,2]
[351347437,1738528240043,-500.0,0.0001726,2]
[351347438,1738528240051,-500.0,0.0001726,2]
[351347439,1738528240061,-1240.04,0.0001726,2]
[351347440,1738528240071,-500.0,0.0001726,2]
[351347441,1738528240080,-2462.26445863,0.0001726,2]
[351347442,1738528240306,-500.0,0.00016438,2]
[351347443,1738528240316,-500.0,0.00016575,2]
[351347444,1738528240326,-500.0,0.00016712,2]
[351347445,1738528240335,-500.0,0.00016712,2]
[351347446,1738528240344,-219.10407505,0.00016849,2]
[351347447,1738528240355,-280.89592495,0.00016849,2]
[351347449,1738528240364,-500.0,0.00016849,2]
[351347451,1738528240373,-500.0,0.00016986,2]
[351347453,1738528240383,-500.0,0.00016986,2]
[351347454,1738528240392,-500.0,0.00017123,2]
[351347455,1738528240402,-2228.77554137,0.0001726,2]
[351347456,1738528240412,-920.49,0.0001726,2]
[351347457,1738528240421,-578.65,0.0001726,2]
[351347458,1738528240430,-451.41561702,0.0001726,2]
[351347460,1738528240439,-511.16,0.0001726,2]
[351347462,1738528240450,-500.0,0.0001726,2]
[351347463,1738528240459,-522.38,0.0001726,2]
[351347465,1738528240468,-590.02,0.0001726,2]
[351347466,1738528240479,-500.0,0.0001726,2]
[351347468,1738528240489,-529.1,0.0001726,2]
[351347469,1738528240498,-1613.6,0.0001726,2]
[351347470,1738528240507,-5859.84,0.0001726,2]
[351347472,1738528240517,-2298.18,0.0001726,2]
[351347473,1738528240528,-500.0,0.0001726,2]
[351347475,1738528240537,-500.0,0.0001726,2]
[351347477,1738528240547,-1366.36,0.0001726,2]
[351347479,1738528240556,-572.75887111,0.0001726,2]
[351347569,1738528243146,-500.0,0.00016438,2]
[351347570,1738528243156,-500.0,0.00016438,2]
[351347571,1738528243165,-500.0,0.00016575,2]
[351347572,1738528243175,-500.0,0.00016575,2]
[351347573,1738528243184,-500.0,0.00016712,2]
[351347574,1738528243194,-500.0,0.00016712,2]
[351347575,1738528243204,-500.0,0.00016849,2]
[351347576,1738528243213,-500.0,0.00016849,2]
[351347577,1738528243223,-500.0,0.00016986,2]
[351347578,1738528243232,-319.52558312,0.00017007,2]
[351347579,1738528243242,-139.64975146,0.00017123,2]
[351347581,1738528243253,-360.35024854,0.00017123,2]
[351347582,1738528243263,-500.0,0.00017123,2]
[351347583,1738528243272,-690.15112889,0.0001726,2]
[351347584,1738528243283,-848.08,0.0001726,2]
[351347585,1738528243292,-1261.73,0.0001726,2]
[351347586,1738528243302,-500.0,0.0001726,2]
[351347587,1738528243311,-306.68862259,0.0001726,2]
[351347588,1738528243323,-193.31137741,0.0001726,2]
[351347589,1738528243332,-603.64377959,0.0001726,2]
[351347621,1738528245973,-500.0,0.00016438,2]
[351347623,1738528245982,-507.25544204,0.00016575,2]